bitfinex/quotes_SOLUSD_20220129
["timestamp","ask_amount","ask_price","bid_price","bid_amount"]
[1643463252023,15.379,97.67,97.547,23.1379]
[1643463252222,41.12862549,97.669,97.547,23.1379]
[1643463252424,41.37862549,97.669,97.547,23.1379]
[1643463252634,2.95669142,97.719,97.587,0.30729611]
[1643463252825,103.4,97.78,97.6,12.4]
[1643463253025,143.96059279,97.789,97.633,0.3079185]
[1643463253327,143.96059279,97.789,97.64,12.4]
[1643463253625,44.02857749,97.787,97.666,0.32129915]
[1643463253823,14.965222,97.786,97.67,12.4]
[1643463254027,44.02857749,97.787,97.67,12.4]
[1643463254225,44.02857749,97.787,97.671,25.23618823]
[1643463255031,44.02857749,97.787,97.643,23.132066]
[1643463255432,15.362,97.77,97.623,22.94098767]
[1643463255649,150.14917617,97.769,97.623,22.94098767]
[1643463255852,150.39917617,97.769,97.61,12.4]
[1643463256049,103.4,97.758,97.61,12.4]
[1643463256249,0.25,97.757,97.611,22.62320989]
[1643463256450,6.0,97.759,97.636,0.30367355]
[1643463256650,6.0,97.759,97.659,0.32108105]
[1643463256850,6.0,97.759,97.66,12.4]
[1643463257050,6.0,97.786,97.66,12.4]
[1643463257253,6.0,97.786,97.685,0.31823256]
[1643463257451,51.19,97.83,97.685,0.31823256]
[1643463257653,44.05767584,97.795,97.686,22.62320989]
[1643463257854,32.364703,97.791,97.651,2.77291727]
[1643463258059,32.364703,97.791,97.65,12.4]
[1643463258253,0.25,97.79,97.65,12.4]
[1643463258457,0.25,97.79,97.652,20.39399878]
[1643463258654,15.361,97.77,97.652,20.39399878]
[1643463259055,3.0,97.848,97.652,20.39399878]
[1643463259255,16.600205,97.791,97.678,0.31473366]
[1643463259454,16.600205,97.791,97.701,0.30048303]
[1643463259654,15.0791,97.949,97.701,0.30048303]
[1643463259655,15.347,97.85,97.739,0.30070139]
[1643463259855,15.347,97.85,97.73,12.4]
[1643463260055,16.600205,97.791,97.74,18.4]
[1643463260260,16.600205,97.791,97.75,12.4]
[1643463260455,10.341881,97.791,97.758,0.30070078]
[1643463260658,5.0,97.896,97.77,12.4]
[1643463260856,30.55811402,97.796,97.792,16.46686194]
[1643463261058,39.93303826,97.853,97.771,24.86443256]
[1643463261258,243.23722624,97.823,97.815,0.31776246]
[1643463261457,201.32817413,97.823,97.819,0.31443772]
[1643463261658,0.1,97.896,97.819,0.31443772]
[1643463261856,21.35333847,97.975,97.83,12.4]
[1643463261857,0.1,97.974,97.83,12.4]
[1643463262057,0.1,97.974,97.849,24.99174038]
[1643463262256,0.1,97.974,97.817,0.25]
[1643463262257,0.5063641,97.871,97.831,37.38404222]
[1643463262658,0.5063641,97.871,97.832,20.22582338]
[1643463262858,0.5063641,97.871,97.833,0.25]
[1643463263059,0.5063641,97.871,97.842,6.0]
[1643463263358,7.611e-05,97.881,97.87,0.31017177]
[1643463263567,7.611e-05,97.881,97.872,0.5063641]
[1643463263966,7.611e-05,97.881,97.88,6.0]
[1643463264159,0.51429718,97.983,97.88,6.0]
[1643463264361,0.51429718,97.983,97.89,12.4]
[1643463264560,0.51429718,97.983,97.9,6.0]
[1643463264765,0.4767906,97.901,97.897,0.00528567]
[1643463264962,0.51429718,97.983,97.891,38.21127344]
[1643463265162,173.379717,97.982,97.89,12.4]
[1643463265360,0.1,97.981,97.89,12.4]
[1643463265562,0.1,97.981,97.892,19.6213247]
[1643463265762,0.51429718,97.983,97.893,0.25]
[1643463265960,0.51429718,97.983,97.893,33.6157401]
[1643463266163,0.51429718,97.983,97.894,35.53898991]
[1643463266362,0.51429718,97.983,97.903,6.0]
[1643463266563,0.51429718,97.983,97.91,12.4]
[1643463266764,0.51429718,97.983,97.904,19.14474794]
[1643463266966,173.62777,97.982,97.911,19.28251934]
[1643463267166,0.1,97.981,97.911,17.28251934]
[1643463267363,17.375955,97.98,97.911,0.00251934]
[1643463267563,0.1,97.979,97.89,18.94163045]
[1643463267765,27.568607,97.978,97.88,12.4]
[1643463267965,0.1,97.977,97.88,12.4]
[1643463268171,45.4440111,97.967,97.88,12.4]
[1643463268465,0.1,97.966,97.88,12.4]
[1643463268667,12.078084,97.966,97.88,12.4]
[1643463268865,4.472951,97.965,97.88,30.09363045]
[1643463269064,45.4440111,97.967,97.88,30.09363045]
[1643463269065,0.1,97.966,97.88,30.09363045]
[1643463269465,0.51429718,97.983,97.88,48.1947583]
[1643463269666,0.51429718,97.983,97.881,19.6213247]
[1643463269865,0.51429718,97.983,97.88,30.09363045]
[1643463270067,0.51429718,97.983,97.88,12.4]
[1643463270068,208.193238,97.982,97.88,12.4]
[1643463270267,46.81767062,97.981,97.88,12.4]
[1643463270468,0.1,97.98,97.88,12.4]
[1643463270668,0.1,97.98,97.88,29.64007489]
[1643463271072,0.1,97.98,97.89,6.0]
[1643463271275,0.51429718,97.983,97.9,12.4]
[1643463271770,0.51429718,97.983,97.901,17.24007489]
[1643463271972,0.51429718,97.983,97.901,20.02120264]
[1643463272171,38.5330157,97.982,97.901,17.24007489]
[1643463272370,0.1,97.981,97.901,17.24007489]
[1643463272571,0.1,97.981,97.902,17.24007489]
[1643463272974,0.1,97.981,97.9,12.4]
[1643463273775,0.35,97.981,97.85,33.17309107]
[1643463273976,6.0,97.972,97.86,22.4]
[1643463274274,0.25,97.971,97.86,12.4]
[1643463275273,0.1,97.981,97.86,12.4]
[1643463275573,0.1,97.981,97.88,0.31739909]
[1643463275773,0.51429718,97.983,97.911,0.30157543]
[1643463275974,0.51429718,97.983,97.92,12.4]
[1643463276172,0.1,97.999,97.945,0.30419082]
[1643463276375,45.48791943,98.094,97.985,0.51429718]
[1643463276573,45.48791943,98.094,97.99,12.4]
[1643463277173,103.4,98.093,97.987,0.00362941]
[1643463277374,103.4,98.093,97.922,69.8944]
[1643463277375,3.0,98.132,97.956,2.78112775]
[1643463277573,15.314,98.09,97.956,2.78112775]
[1643463277772,15.314,98.09,97.953,18.6645183]
[1643463277981,15.314,98.09,97.956,16.89146274]
[1643463278173,35.58967616,98.094,97.956,16.89146274]
[1643463278777,35.58967616,98.094,97.96,12.4]
[1643463278979,6.0,98.084,97.96,12.4]
[1643463279176,6.0,98.084,97.961,17.14146274]
[1643463279374,114.9562,98.146,97.97,6.0]
[1643463279576,61.98,98.145,97.98,12.4]
[1643463279978,61.98,98.093,97.98,12.4]
[1643463280176,40.72265265,98.094,97.961,33.13550251]
[1643463280376,37.29963745,98.074,97.961,33.13550251]
[1643463280576,6.0,98.084,97.961,33.13550251]
[1643463280775,6.0,98.084,97.961,49.49685414]
[1643463281679,41.29257719,98.083,97.961,33.13550251]
[1643463282077,6.0,98.073,97.961,33.13550251]
[1643463282282,0.25,98.072,97.961,33.13550251]
[1643463283178,0.25,98.072,97.962,16.36135163]
[1643463283780,0.25,98.093,97.962,16.36135163]
[1643463284180,0.25,98.093,97.972,6.0]
[1643463284378,0.25,98.093,97.97,12.4]
[1643463284582,41.7291836,98.092,97.97,12.4]
[1643463284779,0.25,98.091,97.97,12.4]
[1643463284983,6.0,98.082,97.97,12.4]
[1643463285379,0.25,98.081,97.97,12.4]
[1643463286581,15.316,98.08,97.939,16.36135163]
[1643463286884,0.25,98.079,97.93,12.4]
[1643463287082,44.36157291,98.069,97.93,12.4]
[1643463287282,0.25,98.068,97.93,28.76135163]
[1643463287686,62.23,98.068,97.93,28.76135163]
[1643463287884,74.69,98.091,97.93,28.76135163]
[1643463288085,74.69,98.091,97.94,6.0]
[1643463288290,74.69,98.091,97.95,12.4]
[1643463288688,74.69,98.091,97.96,6.0]
[1643463288888,39.71206355,98.093,97.96,12.4]
[1643463289289,39.71206355,98.093,97.961,16.36135163]
[1643463290529,6.0,98.083,97.961,16.36135163]
[1643463290931,0.25,98.082,97.961,16.36135163]
[1643463291331,0.1,98.1,97.962,0.25]
[1643463291530,0.1,98.099,97.962,103.65]
[1643463291731,46.74032124,98.093,97.964,103.4]
[1643463292133,46.74032124,98.093,97.971,103.4]
[1643463292331,51.03,98.14,97.965,16.61135163]
[1643463292332,0.1,98.119,97.974,103.4]
[1643463292532,61.98,98.083,97.924,3.0]
[1643463292735,61.98,98.083,97.93,10.0]
[1643463292931,2.95669142,98.063,97.92,512.55569529]
[1643463293159,61.98,98.052,97.92,512.55569529]
[1643463293333,61.98,98.05,97.92,512.55569529]
[1643463293533,61.98,98.039,97.92,512.55569529]
[1643463293932,61.98,98.019,97.92,512.55569529]
[1643463294133,46.37064136,98.008,97.92,512.55569529]
[1643463294333,62.23,98.007,97.92,512.55569529]
[1643463294533,6.0,97.998,97.92,512.55569529]
[1643463294837,6.25,97.997,97.898,33.1568261]
[1643463295034,6.0,97.987,97.898,33.1568261]
[1643463295433,0.25,97.986,97.871,103.4]
[1643463295634,0.25,97.986,97.872,3.86774439]
[1643463296033,6.0,98.007,97.883,103.4]
[1643463296235,6.0,98.007,97.884,3.86774439]
[1643463296533,6.0,98.007,97.89,15.319]
[1643463296734,6.0,98.007,97.891,3.86774439]
[1643463297034,103.4,98.006,97.891,3.86774439]
[1643463297233,40.351166,98.005,97.866,3.86774439]
[1643463297436,39.55801457,97.995,97.866,3.86774439]
[1643463297635,45.55801457,97.995,97.88,12.4]
[1643463297835,45.55801457,97.995,97.86,22.4]
[1643463298036,45.55801457,97.995,97.861,107.27288905]
[1643463298245,6.0,97.995,97.861,107.27288905]
[1643463298435,6.0,98.007,97.871,6.0]
[1643463298636,6.0,98.007,97.88,12.4]
[1643463298835,6.0,98.007,97.881,107.27288905]
[1643463299036,6.0,98.007,97.882,3.87288905]
[1643463299236,0.25,98.006,97.883,0.25]
[1643463299441,6.0,98.007,97.884,3.87288905]
[1643463299735,6.0,98.007,97.891,103.4]
[1643463299939,6.0,98.007,97.892,3.87288905]
[1643463300138,6.0,98.007,97.892,4.12288905]
[1643463300335,6.0,98.007,97.893,3.87288905]
[1643463300537,23.6796,98.049,97.903,6.0]
[1643463300736,0.1,98.112,97.912,0.30465705]
[1643463300935,21.32346299,98.1,97.912,0.30465705]
[1643463301136,0.1,98.099,97.921,67.98]
[1643463301339,45.0006905,98.094,97.93,12.4]
[1643463301538,45.0006905,98.094,97.94,6.0]
[1643463301738,15.314,98.09,97.95,12.4]
[1643463301936,6.0,98.084,97.96,12.4]
[1643463302138,6.0,98.08,97.96,12.4]
[1643463302339,37.60624741,98.079,97.96,12.4]
[1643463302641,6.0,98.069,97.96,12.4]
[1643463303837,0.25,98.068,97.96,12.4]
[1643463304438,0.25,98.068,97.926,549.59109679]
[1643463304638,0.25,98.068,97.94,12.4]
[1643463304639,6.25,98.068,97.94,12.4]
[1643463304841,6.25,98.068,97.941,3.88265607]
[1643463305040,6.25,98.068,97.951,6.0]
[1643463305241,0.25,98.068,97.96,12.4]
[1643463306541,68.23,98.068,97.96,12.4]
[1643463306739,68.23,98.068,97.926,549.59109679]
[1643463307139,71.18669142,98.068,97.926,549.59109679]
[1643463307338,15.319,98.05,97.926,549.59109679]
[1643463307538,45.226401,98.049,97.927,3.88428213]
[1643463307741,45.476401,98.049,97.927,3.88428213]
[1643463308339,45.476401,98.049,97.928,0.25]
[1643463308540,6.0,98.039,97.929,3.88428213]
[1643463308738,44.6015638,98.049,97.94,12.4]
[1643463308938,15.315,98.07,97.94,12.4]
[1643463309139,15.315,98.07,97.941,3.88246487]
[1643463309939,35.73725066,98.069,97.941,3.88246487]
[1643463310539,35.73725066,98.069,97.94,12.4]
[1643463310940,35.73725066,98.069,97.941,3.88315901]
[1643463311240,35.73725066,98.069,97.941,107.28315901]
[1643463311439,35.73725066,98.069,97.942,3.88315901]
[1643463311843,35.73725066,98.069,97.943,0.25]
[1643463312042,35.73725066,98.069,97.944,3.88315901]
[1643463312241,0.25,98.068,97.945,0.25]
[1643463312843,0.25,98.068,97.94,12.4]
[1643463313042,0.25,98.068,97.95,6.0]
[1643463313240,0.25,98.068,97.96,12.4]
[1643463314540,6.0,98.059,97.96,12.4]
[1643463314740,0.25,98.058,97.96,12.4]
[1643463316673,6.0,98.059,97.96,12.4]
[1643463318578,24.0775,98.088,97.96,12.4]
[1643463318874,24.0775,98.088,97.961,106.43042466]
[1643463319075,0.1,98.104,97.971,6.0]
[1643463319276,1.660563,98.094,97.98,12.4]
[1643463319475,43.16809605,98.093,97.98,12.4]
[1643463319877,1.65986365,98.092,97.98,12.4]
[1643463320279,0.25,98.091,97.98,12.4]
[1643463320684,1.65993543,98.09,97.98,12.4]
[1643463320878,6.0,98.083,97.98,12.4]
[1643463321080,6.0,98.08,97.98,12.4]
[1643463321379,97.80604916,98.078,97.98,12.4]
[1643463321780,0.25,98.077,97.98,12.4]
[1643463322179,15.314,98.07,97.962,33.13516426]
[1643463322380,67.98,98.068,97.962,33.13516426]
[1643463322580,103.4,98.057,97.962,33.13516426]
[1643463322782,0.25,98.056,97.962,33.13516426]
[1643463323983,6.0,98.049,97.962,33.13516426]
[1643463324183,61.98,98.048,97.962,33.13516426]
[1643463324383,62.23,98.048,97.962,33.13516426]
[1643463324583,35.96759476,98.037,97.962,33.13516426]
[1643463324783,0.25,98.036,97.962,33.13516426]
[1643463325085,61.98,98.026,97.865,24.4513]
[1643463325286,0.25,98.025,97.88,22.4]
[1643463325485,34.74849212,98.015,97.927,21.60513116]
[1643463325688,6.0,98.016,97.927,21.60513116]
[1643463326487,6.0,98.03,97.927,21.60513116]
[1643463326788,40.3403039,98.029,97.927,21.60513116]
[1643463326987,6.0,98.019,97.927,21.60513116]
[1643463327287,62.23,98.018,97.927,21.60513116]
[1643463327487,15.786188,98.017,97.927,21.60513116]
[1643463327687,46.37441677,98.007,97.927,21.60513116]
[1643463327886,62.23,98.006,97.927,21.60513116]
[1643463328091,6.0,97.996,97.927,21.60513116]
[1643463328292,0.25,97.995,97.927,21.60513116]
[1643463328487,56.391066,97.994,97.927,21.60513116]
[1643463328689,67.731318,97.994,97.927,21.60513116]
[1643463328887,34.19798305,97.983,97.927,21.60513116]
[1643463329087,51.941909,97.982,97.927,21.60513116]
[1643463329290,52.191909,97.982,97.88,12.4]
[1643463329490,0.25,97.982,97.88,12.4]
[1643463329791,103.65,97.982,97.88,12.4]
[1643463329989,0.25,97.982,97.88,12.4]
[1643463330392,6.0,97.973,97.88,12.4]
[1643463330589,6.0,97.971,97.861,21.61970222]
[1643463330891,27.224067,97.97,97.861,21.61970222]
[1643463331089,61.98,97.957,97.861,21.61970222]
[1643463331291,61.98,97.955,97.861,21.61970222]
[1643463331489,79.511296,97.956,97.861,21.61970222]
[1643463331691,6.0,97.945,97.861,21.61970222]
[1643463331890,0.25,97.944,97.861,21.61970222]
[1643463332090,63.471858,97.943,97.861,21.61970222]
[1643463332291,37.61403442,97.942,97.861,21.61970222]
[1643463332491,6.0,97.932,97.861,21.61970222]
[1643463332892,60.721694,97.931,97.861,21.61970222]
[1643463333192,35.69912108,97.92,97.853,21.62146974]
[1643463333394,0.25,97.919,97.853,21.62146974]
[1643463333792,0.25,97.919,97.852,358.21015824]
[1643463333992,6.0,97.91,97.852,358.21015824]
[1643463334194,27.220161,97.909,97.852,358.21015824]
[1643463334416,6.0,97.908,97.795,474.99570641]
[1643463334592,2.95669142,97.941,97.795,474.99570641]
[1643463334593,42.96179737,97.898,97.796,18.86204453]
[1643463335194,42.96179737,97.898,97.795,474.99570641]
[1643463335392,6.0,97.899,97.795,474.99570641]
[1643463335592,0.25,97.897,97.8,12.4]
[1643463335793,15.339,97.93,97.796,2.78092732]
[1643463335996,6.0,97.92,97.796,2.78092732]
[1643463336193,6.0,97.92,97.795,474.99570641]
[1643463336397,42.17735128,97.965,97.81,12.4]
[1643463336596,42.17735128,97.965,97.811,103.4]
[1643463336794,15.335,97.96,97.811,103.4]
[1643463337395,16.435,97.96,97.81,12.4]
[1643463337595,6.0,97.95,97.81,12.4]
[1643463337796,44.50562784,97.949,97.81,12.4]
[1643463337997,6.0,97.939,97.81,12.4]
[1643463338998,6.0,97.939,97.811,103.4]
[1643463339296,6.0,97.939,97.81,27.731]
[1643463339503,6.0,97.939,97.81,12.4]
[1643463340597,0.25,97.938,97.81,12.4]
[1643463340796,0.25,97.938,97.811,103.65]
[1643463340996,0.25,97.938,97.81,12.4]
[1643463341397,0.25,97.938,97.811,0.25]
[1643463341697,0.25,97.938,97.82,15.329]
[1643463341946,0.25,97.938,97.821,0.25]
[1643463342096,0.25,97.938,97.83,12.4]
[1643463342297,0.25,97.978,97.831,0.25]
[1643463342502,33.22145545,97.978,97.84,6.0]
[1643463342698,6.0,97.968,97.85,12.4]
[1643463343100,61.98,97.967,97.85,12.4]
[1643463343301,6.0,97.968,97.85,12.4]
[1643463343501,41.26054799,97.956,97.85,12.4]
[1643463343899,6.0,97.946,97.85,12.4]
[1643463344300,0.25,97.945,97.85,12.4]
[1643463344501,6.0,97.946,97.85,12.4]
[1643463346102,6.0,97.945,97.814,22.9097]
[1643463346303,6.25,97.945,97.824,6.0]
[1643463346703,6.0,97.935,97.814,22.9097]
[1643463346901,43.47497372,97.933,97.814,22.9097]
[1643463347102,6.0,97.923,97.814,22.9097]
[1643463347300,0.25,97.922,97.824,6.0]
[1643463347702,0.25,97.922,97.814,22.9097]
[1643463348503,6.25,97.922,97.814,22.9097]
[1643463349004,45.265976,97.921,97.814,22.9097]
[1643463349432,40.06163366,97.911,97.814,22.9097]
[1643463349604,6.0,97.901,97.814,22.9097]
[1643463349806,0.25,97.9,97.814,22.9097]
[1643463350804,15.794287,97.899,97.814,22.9097]
[1643463351205,0.25,97.898,97.814,22.9097]
[1643463351405,15.794287,97.897,97.814,22.9097]
[1643463351608,34.18852422,97.896,97.814,22.9097]
[1643463351807,19.81871,97.895,97.814,22.9097]
[1643463352007,15.786169,97.894,97.814,22.9097]
[1643463352207,15.786169,97.895,97.814,22.9097]
[1643463352409,0.25,97.894,97.814,22.9097]
[1643463352809,15.786169,97.893,97.814,22.9097]
[1643463353218,0.25,97.892,97.814,22.9097]
[1643463353411,56.944326,97.891,97.782,2.73681958]
[1643463353610,34.18852422,97.896,97.775,2.73681958]
[1643463353811,61.98,97.957,97.796,0.25]
[1643463354019,61.98,97.957,97.805,6.0]
[1643463354214,57.206391,97.944,97.805,6.0]
[1643463354413,6.0,97.935,97.806,6.0]
[1643463354617,63.206391,97.934,97.805,6.0]
[1643463354816,95.05641881,97.933,97.805,6.0]
[1643463355018,6.0,97.923,97.8,27.733]
[1643463355219,37.85002781,97.933,97.81,12.4]
[1643463355415,21.3209469,97.945,97.81,18.4]
[1643463355615,15.3936,97.985,97.811,20.15016478]
[1643463355817,15.3936,97.985,97.811,16.26138814]
[1643463355818,21.32220613,97.959,97.811,16.26138814]
[1643463356016,38.453486,97.958,97.812,3.8896729]
[1643463356416,6.0,97.948,97.812,3.8896729]
[1643463356617,37.74500676,97.942,97.813,0.25]
[1643463356819,38.715376,97.941,97.812,0.25]
[1643463357042,6.0,97.931,97.812,0.25]
[1643463357242,0.25,97.93,97.811,0.25]
[1643463357442,6.25,97.93,97.811,0.25]
[1643463357642,41.242795,97.929,97.811,0.25]
[1643463357844,45.04511222,97.919,97.811,0.25]
[1643463358045,41.242795,97.918,97.811,0.25]
[1643463358246,57.283845,97.918,97.811,0.25]
[1643463358443,6.0,97.908,97.811,0.25]
[1643463358843,41.49602,97.907,97.811,0.25]
[1643463359044,41.24602,97.906,97.812,3.9002707]
[1643463359349,6.0,97.897,97.813,0.25]
[1643463359544,6.0,97.891,97.813,0.25]
[1643463359744,6.0,97.891,97.814,3.9002707]
[1643463359945,0.25,97.89,97.813,0.25]
[1643463360645,0.25,97.89,97.811,0.25]
[1643463360846,0.25,97.89,97.812,3.90063868]
[1643463361245,0.25,97.89,97.813,0.25]
[1643463361645,0.25,97.89,97.814,3.90063868]
[1643463361845,62.23,97.939,97.814,3.90063868]
[1643463362047,103.4,97.937,97.822,112.8]
[1643463362246,165.38,97.928,97.801,2.78043683]
[1643463362453,103.4,97.924,97.797,2.73681958]
[1643463362648,45.4970465,97.916,97.796,3.90394299]
[1643463362848,103.4,97.912,97.796,3.90394299]
[1643463363047,6.0,97.902,97.796,3.90394299]
[1643463363249,33.98008642,97.901,97.796,3.90394299]
[1643463363446,39.98008642,97.901,97.796,3.90394299]
[1643463363647,67.98,97.9,97.796,3.90394299]
[1643463363847,6.0,97.891,97.784,2.73681958]
[1643463364047,6.0,97.89,97.787,2.73681958]
[1643463364248,6.0,97.89,97.796,3.90225245]
[1643463364448,0.25,97.889,97.796,3.90225245]
[1643463364851,0.25,97.889,97.784,2.73681958]
[1643463365054,6.0,97.888,97.783,2.73681958]
[1643463365254,0.25,97.887,97.785,2.73681958]
[1643463365452,6.0,97.888,97.796,3.90183203]
[1643463365651,6.0,97.891,97.796,3.90183203]
[1643463365853,6.0,97.891,97.797,0.25]
[1643463366053,22.8656,97.952,97.81,12.4]
[1643463366252,23.5225,97.957,97.81,12.4]
[1643463366253,23.5225,97.957,97.811,4.15183203]
[1643463366454,23.5225,97.957,97.821,2.73681958]
[1643463366752,21.32457935,97.96,97.83,12.4]
[1643463366955,39.71121004,97.959,97.83,12.4]
[1643463367154,39.71121004,97.959,97.831,0.25]
[1643463367556,6.0,97.949,97.831,0.25]
[1643463367951,6.0,97.949,97.83,12.4]
[1643463368154,15.77212,97.948,97.83,12.4]
[1643463368453,61.98,97.948,97.83,12.4]
[1643463368654,6.0,97.938,97.83,12.4]
[1643463368853,40.84554692,97.937,97.83,12.4]
[1643463369054,6.0,97.927,97.83,12.4]
[1643463369254,0.25,97.926,97.836,1.3795987]
[1643463369452,15.77534,97.925,97.839,1.3795987]
[1643463369654,6.0,97.927,97.839,1.3795987]
[1643463369853,40.9573341,97.914,97.839,1.3795987]
[1643463370058,40.603501,97.913,97.835,1.3795987]
[1643463370257,40.9573341,97.914,97.835,1.3795987]
[1643463370456,6.0,97.903,97.835,1.3795987]
[1643463370656,30.877415,97.902,97.832,1.3795987]
[1643463370856,0.25,97.902,97.832,1.3795987]
[1643463371158,0.25,97.902,97.835,1.3795987]
[1643463371355,6.0,97.904,97.836,1.3795987]
[1643463371555,6.0,97.943,97.837,0.25]
[1643463371758,1.41912993,97.957,97.86,1.3795987]
[1643463371958,42.22098019,97.977,97.87,12.4]
[1643463372162,42.22098019,97.977,97.871,1.3795987]
[1643463372359,42.22098019,97.977,97.876,1.3795987]
[1643463372562,42.22098019,97.977,97.875,1.3795987]
[1643463372760,42.22098019,97.977,97.876,0.25]
[1643463372961,42.22098019,97.977,97.876,1.3795987]
[1643463373462,42.22098019,97.977,97.88,1.3795987]
[1643463373862,42.22098019,97.977,97.877,0.25]
[1643463373863,42.22098019,97.977,97.881,1.3795987]
[1643463374061,42.22098019,97.977,97.877,0.25]
[1643463374263,1.41912993,98.004,97.877,0.25]
[1643463374467,1.41912993,98.006,97.877,0.25]
[1643463374674,1.41912993,98.009,97.877,1.3795987]
[1643463374872,6.0,97.996,97.878,0.25]
[1643463375271,41.21840498,97.995,97.878,0.25]
[1643463375472,41.21840498,97.995,97.873,1.3795987]
[1643463375693,0.25,97.994,97.875,0.25]
[1643463375891,0.25,97.994,97.88,18.4]
[1643463376291,0.25,97.994,97.88,19.7795987]
[1643463376592,6.0,97.985,97.88,18.4]
[1643463376790,0.25,97.984,97.88,12.4]
[1643463376991,6.676151,97.984,97.88,12.4]
[1643463377196,22.207955,97.983,97.88,12.4]
[1643463377393,6.0,97.974,97.88,12.4]
[1643463377594,81.13735187,97.973,97.88,12.4]
[1643463377793,40.348178,97.972,97.88,12.4]
[1643463377993,40.598178,97.972,97.88,12.4]
[1643463378195,56.664045,97.971,97.88,12.4]
[1643463378394,0.25,97.97,97.88,12.4]
[1643463378794,16.315867,97.969,97.88,12.4]
[1643463378995,6.0,97.959,97.88,12.4]
[1643463379197,43.67158996,97.958,97.88,12.4]
[1643463379402,43.92158996,97.958,97.88,12.4]
[1643463379595,103.4,97.956,97.88,12.4]
[1643463379797,103.4,97.956,97.851,1.3795987]
[1643463379798,16.035025,97.955,97.841,1.3795987]
[1643463379995,6.0,97.945,97.841,1.3795987]
[1643463380196,6.0,97.945,97.838,1.3795987]
[1643463380398,6.25,97.944,97.838,1.3795987]
[1643463380598,34.26640264,97.943,97.838,1.3795987]
[1643463380801,34.26640264,97.943,97.811,2.73681958]
[1643463380802,103.65,97.942,97.833,1.3795987]
[1643463381000,6.0,97.932,97.833,1.3795987]
[1643463381400,0.25,97.931,97.832,1.3795987]
[1643463381598,0.25,97.931,97.828,1.3795987]
[1643463381797,0.25,97.931,97.827,1.3795987]
[1643463381998,0.25,97.931,97.828,1.3795987]
[1643463382200,0.25,97.931,97.824,1.3795987]
[1643463382602,0.25,97.931,97.823,1.3795987]
[1643463382799,0.25,97.931,97.825,1.3795987]
[1643463383003,0.25,97.931,97.828,1.3795987]
[1643463383202,62.23,97.931,97.831,1.3795987]
[1643463383401,0.25,97.931,97.821,1.3795987]
[1643463383602,0.25,97.931,97.819,1.3795987]
[1643463383603,40.53404612,97.92,97.819,1.3795987]
[1643463383803,0.25,97.919,97.818,1.3795987]
[1643463384014,6.0,97.91,97.816,1.3795987]
[1643463384204,6.0,97.91,97.814,1.3795987]
[1643463384411,0.25,97.909,97.814,1.3795987]
[1643463384610,6.0,97.904,97.814,1.3795987]
[1643463384805,138.63883089,97.903,97.813,1.3795987]
[1643463385008,6.0,97.893,97.813,1.3795987]
[1643463385412,23.573356,97.892,97.811,1.3795987]
[1643463385606,23.573356,97.892,97.784,2.73681958]
[1643463385607,6.0,97.882,97.801,1.3795987]
[1643463385808,42.36859283,97.881,97.801,1.3795987]
[1643463386008,6.0,97.871,97.802,1.3795987]
[1643463386208,6.0,97.871,97.758,16.26138814]
[1643463386209,6.0,97.871,97.8,1.3795987]